[Event "November 21 Early 2023"]
[Site "https://www.chess.com"]
[Date "2023.11.21"]
[Round "1"]
[White "Onslow, Alfie"]
[Black "Ozates, Tuna"]
[Result "1-0"]
[Board "206"]
[TimeControl "180+1"]
[WhiteFideId "436976"]
[BlackFideId "6354521"]
[WhiteElo "2114"]
[BlackElo "2151"]
[WhiteTeam "ENG"]
[BlackTeam "TUR"]
[WhiteClock "0:00:03"]
[BlackClock "0:00:05"]

1. e4 {[%clk 0:02:58]}  c5 {[%clk 0:02:59]} 2. Nc3 {[%clk 0:02:59]}  a6 {[%clk 0:03:00]} 3. g3 {[%clk 0:02:57]}  b5 {[%clk 0:03:00]} 4. Bg2 {[%clk 0:02:57]}  Bb7 {[%clk 0:03:00]} 5. Nge2 {[%clk 0:02:53]}  e6 {[%clk 0:03:00]} 6. O-O {[%clk 0:02:52]}  Nc6 {[%clk 0:02:57]} 7. d4 {[%clk 0:02:46]}  cxd4 {[%clk 0:02:57]} 8. Nxd4 {[%clk 0:02:47]}  Nxd4 {[%clk 0:02:56]} 9. Qxd4 {[%clk 0:02:48]}  Nf6 {[%clk 0:02:51]} 10. e5 {[%clk 0:02:44]}  Bxg2 {[%clk 0:02:48]} 11. Kxg2 {[%clk 0:02:43]}  Ng8 {[%clk 0:02:41]} 12. Ne4 {[%clk 0:02:41]}  f5 {[%clk 0:02:36]} 13. Nd6+ {[%clk 0:02:38]}  Bxd6 {[%clk 0:02:36]} 14. Qxd6 {[%clk 0:02:39]}  Ne7 {[%clk 0:02:24]} 15. Bg5 {[%clk 0:02:36]}  h6 {[%clk 0:02:22]} 16. Bxe7 {[%clk 0:02:36]}  Qxe7 {[%clk 0:02:23]} 17. Rfd1 {[%clk 0:02:36]}  f4 {[%clk 0:02:07]} 18. c3 {[%clk 0:02:27]}  fxg3 {[%clk 0:02:06]} 19. hxg3 {[%clk 0:02:23]}  h5 {[%clk 0:02:05]} 20. a4 {[%clk 0:02:22]}  h4 {[%clk 0:02:01]} 21. axb5 {[%clk 0:02:11]}  Qf7 {[%clk 0:02:00]} 22. f3 {[%clk 0:01:36]}  g5 {[%clk 0:01:43]} 23. Rxa6 {[%clk 0:01:20]}  Rd8 {[%clk 0:01:39]} 24. Ra7 {[%clk 0:01:04]}  h3+ {[%clk 0:01:25]} 25. Kf2 {[%clk 0:00:58]}  h2 {[%clk 0:01:25]} 26. Rh1 {[%clk 0:00:56]}  g4 {[%clk 0:01:13]} 27. Qd3 {[%clk 0:00:49]}  gxf3 {[%clk 0:01:11]} 28. b6 {[%clk 0:00:20]}  Qg7 {[%clk 0:00:55]} 29. Qe4 {[%clk 0:00:17]}  Rg8 {[%clk 0:00:45]} 30. g4 {[%clk 0:00:12]}  Qg5 {[%clk 0:00:42]} 31. Rxh2 {[%clk 0:00:07]}  Rf8 {[%clk 0:00:25]} 32. b7 {[%clk 0:00:05]}  Qd2+ {[%clk 0:00:22]} 33. Kg3 {[%clk 0:00:05]}  Qxh2+ {[%clk 0:00:10]} 34. Kxh2 {[%clk 0:00:06]}  f2 {[%clk 0:00:10]} 35. Qg6+ {[%clk 0:00:06]}  Ke7 {[%clk 0:00:10]} 36. Qg5+ {[%clk 0:00:05]}  Ke8 {[%clk 0:00:10]} 37. Qg6+ {[%clk 0:00:03]}  Rf7 {[%clk 0:00:11]} 38. Ra1 {[%clk 0:00:03]}  Ke7 {[%clk 0:00:08]} 39. Rf1 {[%clk 0:00:03]}  Rb8 {[%clk 0:00:07]} 40. Kg2 {[%clk 0:00:03]}  Rbf8 {[%clk 0:00:06]} 41. g5 {[%clk 0:00:03]}  Rf5 {[%clk 0:00:06]} 42. Qg7+ {[%clk 0:00:02]}  Kd8 {[%clk 0:00:05]} 43. b8=Q# {[%clk 0:00:03]} 1-0

[Event "November 21 Early 2023"]
[Site "https://www.chess.com"]
[Date "2023.11.21"]
[Round "1"]
[White "ilya2700"]
[Black "FREDERICKtheMATE"]
[Result "1/2-1/2"]
[Board "208"]
[TimeControl "180+1"]
[WhiteElo "2228"]
[BlackElo "2560"]
[WhiteClock "0:00:04"]
[BlackClock "0:00:50"]

1. d4 {[%clk 0:02:59]}  Nf6 {[%clk 0:02:58]} 2. c4 {[%clk 0:02:59]}  e6 {[%clk 0:02:57]} 3. Nf3 {[%clk 0:02:59]}  d5 {[%clk 0:02:57]} 4. Nc3 {[%clk 0:02:58]}  Be7 {[%clk 0:02:57]} 5. Bg5 {[%clk 0:02:58]}  O-O {[%clk 0:02:56]} 6. e3 {[%clk 0:02:58]}  h6 {[%clk 0:02:56]} 7. Bh4 {[%clk 0:02:57]}  Ne4 {[%clk 0:02:56]} 8. Bxe7 {[%clk 0:02:57]}  Qxe7 {[%clk 0:02:57]} 9. cxd5 {[%clk 0:02:58]}  Nxc3 {[%clk 0:02:57]} 10. bxc3 {[%clk 0:02:58]}  exd5 {[%clk 0:02:57]} 11. Bd3 {[%clk 0:02:59]}  c5 {[%clk 0:02:57]} 12. O-O {[%clk 0:02:59]}  Nc6 {[%clk 0:02:57]} 13. h3 {[%clk 0:02:57]}  b6 {[%clk 0:02:54]} 14. Re1 {[%clk 0:02:55]}  Bb7 {[%clk 0:02:54]} 15. e4 {[%clk 0:02:49]}  dxe4 {[%clk 0:02:53]} 16. Bxe4 {[%clk 0:02:49]}  Qd6 {[%clk 0:02:53]} 17. Qa4 {[%clk 0:02:01]}  cxd4 {[%clk 0:02:41]} 18. cxd4 {[%clk 0:01:59]}  Na5 {[%clk 0:02:30]} 19. Bxb7 {[%clk 0:01:38]}  Nxb7 {[%clk 0:02:31]} 20. Re4 {[%clk 0:01:27]}  Rac8 {[%clk 0:02:25]} 21. Rae1 {[%clk 0:01:26]}  g6 {[%clk 0:02:24]} 22. Qxa7 {[%clk 0:01:12]}  Na5 {[%clk 0:02:19]} 23. Ne5 {[%clk 0:00:49]}  Rc2 {[%clk 0:02:06]} 24. a4 {[%clk 0:00:25]}  Qf6 {[%clk 0:01:52]} 25. Ng4 {[%clk 0:00:23]}  Qg5 {[%clk 0:01:45]} 26. Qxb6 {[%clk 0:00:19]}  h5 {[%clk 0:01:38]} 27. Qf6 {[%clk 0:00:19]}  Qxf6 {[%clk 0:01:32]} 28. Nxf6+ {[%clk 0:00:20]}  Kg7 {[%clk 0:01:33]} 29. Ne8+ {[%clk 0:00:20]}  Kh6 {[%clk 0:01:32]} 30. d5 {[%clk 0:00:20]}  Rd2 {[%clk 0:01:31]} 31. d6 {[%clk 0:00:19]}  Nb7 {[%clk 0:01:29]} 32. R1e2 {[%clk 0:00:10]}  Rd1+ {[%clk 0:01:27]} 33. Re1 {[%clk 0:00:10]}  Rd2 {[%clk 0:01:27]} 34. R4e2 {[%clk 0:00:10]}  Rd5 {[%clk 0:01:26]} 35. h4 {[%clk 0:00:04]}  Nxd6 {[%clk 0:01:25]} 36. Nxd6 {[%clk 0:00:05]}  Rxd6 {[%clk 0:01:25]} 37. a5 {[%clk 0:00:05]}  Ra8 {[%clk 0:01:24]} 38. Ra1 {[%clk 0:00:05]}  Raa6 {[%clk 0:01:23]} 39. g3 {[%clk 0:00:05]}  Rd5 {[%clk 0:01:23]} 40. Rea2 {[%clk 0:00:05]}  Kg7 {[%clk 0:01:23]} 41. Kg2 {[%clk 0:00:06]}  Rf5 {[%clk 0:01:22]} 42. Ra4 {[%clk 0:00:05]}  Kf6 {[%clk 0:01:22]} 43. Rf4 {[%clk 0:00:05]}  Rxf4 {[%clk 0:01:21]} 44. gxf4 {[%clk 0:00:06]}  Kf5 {[%clk 0:01:22]} 45. Kf3 {[%clk 0:00:06]}  f6 {[%clk 0:01:20]} 46. Ra4 {[%clk 0:00:05]}  Ke6 {[%clk 0:01:20]} 47. Ke4 {[%clk 0:00:05]}  Kd6 {[%clk 0:01:20]} 48. Kd4 {[%clk 0:00:05]}  Ke6 {[%clk 0:01:16]} 49. Ke4 {[%clk 0:00:05]}  Kd6 {[%clk 0:01:16]} 50. f5 {[%clk 0:00:05]}  g5 {[%clk 0:01:14]} 51. hxg5 {[%clk 0:00:04]}  fxg5 {[%clk 0:01:15]} 52. Kf3 {[%clk 0:00:03]}  Ke5 {[%clk 0:01:15]} 53. Ke3 {[%clk 0:00:03]}  Kxf5 {[%clk 0:01:15]} 54. Kf3 {[%clk 0:00:03]}  g4+ {[%clk 0:01:14]} 55. Kg3 {[%clk 0:00:04]}  Kg5 {[%clk 0:01:14]} 56. Kg2 {[%clk 0:00:03]}  h4 {[%clk 0:01:14]} 57. Kh2 {[%clk 0:00:04]}  Kf5 {[%clk 0:01:14]} 58. Kg2 {[%clk 0:00:04]}  Kg5 {[%clk 0:01:11]} 59. Kh2 {[%clk 0:00:04]}  g3+ {[%clk 0:01:11]} 60. fxg3 {[%clk 0:00:03]}  hxg3+ {[%clk 0:01:11]} 61. Kxg3 {[%clk 0:00:04]}  Kf5 {[%clk 0:01:12]} 62. Kf3 {[%clk 0:00:05]}  Ke5 {[%clk 0:01:12]} 63. Ke3 {[%clk 0:00:05]}  Kd5 {[%clk 0:01:12]} 64. Kd3 {[%clk 0:00:06]}  Kc5 {[%clk 0:01:13]} 65. Kc3 {[%clk 0:00:06]}  Kb5 {[%clk 0:01:13]} 66. Ra1 {[%clk 0:00:05]}  Rxa5 {[%clk 0:01:13]} 67. Rb1+ {[%clk 0:00:05]}  Kc6 {[%clk 0:01:13]} 68. Kc4 {[%clk 0:00:04]}  Rc5+ {[%clk 0:01:13]} 69. Kd4 {[%clk 0:00:04]}  Rd5+ {[%clk 0:01:13]} 70. Ke4 {[%clk 0:00:05]}  Rc5 {[%clk 0:01:13]} 71. Rh1 {[%clk 0:00:05]}  Rb5 {[%clk 0:01:13]} 72. Rh6+ {[%clk 0:00:04]}  Kb7 {[%clk 0:01:13]} 73. Kd4 {[%clk 0:00:04]}  Rb6 {[%clk 0:01:14]} 74. Rh7+ {[%clk 0:00:04]}  Ka6 {[%clk 0:01:14]} 75. Kc5 {[%clk 0:00:04]}  Rb5+ {[%clk 0:01:14]} 76. Kc4 {[%clk 0:00:04]}  Rb6 {[%clk 0:01:14]} 77. Rh1 {[%clk 0:00:04]}  Rc6+ {[%clk 0:01:14]} 78. Kd5 {[%clk 0:00:04]}  Rc2 {[%clk 0:01:14]} 79. Kd6 {[%clk 0:00:04]}  Kb5 {[%clk 0:01:11]} 80. Rb1+ {[%clk 0:00:05]}  Kc4 {[%clk 0:01:09]} 81. Rb8 {[%clk 0:00:05]}  Rd2+ {[%clk 0:01:09]} 82. Ke5 {[%clk 0:00:06]}  Re2+ {[%clk 0:01:08]} 83. Kf4 {[%clk 0:00:06]}  Re7 {[%clk 0:01:05]} 84. Rc8+ {[%clk 0:00:06]}  Kd3 {[%clk 0:01:03]} 85. Rc1 {[%clk 0:00:07]}  Rf7+ {[%clk 0:01:01]} 86. Ke5 {[%clk 0:00:07]}  Ke3 {[%clk 0:01:01]} 87. Rc3+ {[%clk 0:00:07]}  Kd2 {[%clk 0:01:01]} 88. Ra3 {[%clk 0:00:08]}  Ke2 {[%clk 0:01:00]} 89. Ra2+ {[%clk 0:00:07]}  Ke3 {[%clk 0:01:00]} 90. Ra3+ {[%clk 0:00:08]}  Ke2 {[%clk 0:01:01]} 91. Ke6 {[%clk 0:00:07]}  Rf3 {[%clk 0:01:01]} 92. Ra2+ {[%clk 0:00:07]}  Ke3 {[%clk 0:01:01]} 93. Ke5 {[%clk 0:00:06]}  Rf8 {[%clk 0:01:01]} 94. Ra3+ {[%clk 0:00:06]}  Kf2 {[%clk 0:01:01]} 95. Ke4 {[%clk 0:00:06]}  Re8+ {[%clk 0:01:00]} 96. Kf4 {[%clk 0:00:06]}  Ke2 {[%clk 0:01:00]} 97. Ra2+ {[%clk 0:00:05]}  Kd3 {[%clk 0:00:59]} 98. Ra3+ {[%clk 0:00:06]}  Kd4 {[%clk 0:00:59]} 99. Ra1 {[%clk 0:00:05]}  Rf8+ {[%clk 0:00:59]} 100. Kg5 {[%clk 0:00:06]}  Ke3 {[%clk 0:00:58]} 101. Re1+ {[%clk 0:00:06]}  Kf2 {[%clk 0:00:58]} 102. Re7 {[%clk 0:00:06]}  Rf3 {[%clk 0:00:57]} 103. Kh4 {[%clk 0:00:05]}  Rg3 {[%clk 0:00:51]} 104. Rb7 {[%clk 0:00:05]}  Rg8 {[%clk 0:00:50]} 105. Rb2+ {[%clk 0:00:04]}  Kf3 {[%clk 0:00:50]} 106. Rb3+ {[%clk 0:00:04]}  Kf4 {[%clk 0:00:51]} 107. Rb4+ {[%clk 0:00:05]}  Kf3 {[%clk 0:00:51]} 108. Rb3+ {[%clk 0:00:05]}  Kg2 {[%clk 0:00:52]} 109. Kh5 {[%clk 0:00:04]}  Rg3 {[%clk 0:00:51]} 110. Rb2+ {[%clk 0:00:04]}  Kh3 {[%clk 0:00:51]} 111. Rb4 {[%clk 0:00:03]}  Rg8 {[%clk 0:00:50]} 112. Rh4+ {[%clk 0:00:03]}  Kg3 {[%clk 0:00:50]} 113. Ra4 {[%clk 0:00:03]}  Rh8+ {[%clk 0:00:50]} 114. Kg6 {[%clk 0:00:03]}  Rg8+ {[%clk 0:00:51]} 115. Kf5 {[%clk 0:00:03]}  Rf8+ {[%clk 0:00:51]} 116. Kg6 {[%clk 0:00:04]}  Rf4 {[%clk 0:00:50]} 1/2-1/2

[Event "November 21 Early 2023"]
[Site "https://www.chess.com"]
[Date "2023.11.21"]
[Round "1"]
[White "Thorfinnsson, Bjorn"]
[Black "pinguino120"]
[Result "1-0"]
[Board "209"]
[TimeControl "180+1"]
[WhiteFideId "2300982"]
[WhiteElo "2381"]
[BlackElo "2228"]
[WhiteTeam "ISL"]
[WhiteClock "0:01:08"]
[BlackClock "0:00:16"]

1. d4 {[%clk 0:02:58]}  Nf6 {[%clk 0:02:58]} 2. Nf3 {[%clk 0:02:57]}  d5 {[%clk 0:02:55]} 3. Bg5 {[%clk 0:02:56]}  Ne4 {[%clk 0:02:48]} 4. e3 {[%clk 0:02:54]}  Nxg5 {[%clk 0:02:42]} 5. Nxg5 {[%clk 0:02:55]}  Bf5 {[%clk 0:02:36]} 6. f4 {[%clk 0:02:54]}  h6 {[%clk 0:02:32]} 7. Nf3 {[%clk 0:02:53]}  e6 {[%clk 0:02:31]} 8. Bd3 {[%clk 0:02:52]}  Bxd3 {[%clk 0:02:31]} 9. Qxd3 {[%clk 0:02:53]}  c5 {[%clk 0:02:30]} 10. c3 {[%clk 0:02:51]}  Nc6 {[%clk 0:02:29]} 11. Nbd2 {[%clk 0:02:52]}  Bd6 {[%clk 0:02:24]} 12. Ne5 {[%clk 0:02:51]}  Qb6 {[%clk 0:02:21]} 13. O-O-O {[%clk 0:02:48]}  Qc7 {[%clk 0:02:01]} 14. Kb1 {[%clk 0:02:45]}  O-O-O {[%clk 0:02:00]} 15. Qb5 {[%clk 0:02:34]}  Kb8 {[%clk 0:01:47]} 16. Rhf1 {[%clk 0:02:29]}  f6 {[%clk 0:01:42]} 17. Nxc6+ {[%clk 0:02:09]}  Qxc6 {[%clk 0:01:42]} 18. Qxc6 {[%clk 0:02:09]}  bxc6 {[%clk 0:01:42]} 19. Nb3 {[%clk 0:02:08]}  c4 {[%clk 0:01:34]} 20. Nd2 {[%clk 0:02:06]}  c5 {[%clk 0:01:29]} 21. Nf3 {[%clk 0:02:04]}  Kc7 {[%clk 0:01:27]} 22. Rde1 {[%clk 0:02:00]}  f5 {[%clk 0:01:14]} 23. dxc5 {[%clk 0:01:57]}  Bxc5 {[%clk 0:01:14]} 24. Nd4 {[%clk 0:01:56]}  Bxd4 {[%clk 0:01:13]} 25. exd4 {[%clk 0:01:55]}  Kd6 {[%clk 0:01:13]} 26. Rf3 {[%clk 0:01:54]}  Rhe8 {[%clk 0:01:12]} 27. Rg3 {[%clk 0:01:54]}  Re7 {[%clk 0:01:13]} 28. Rg6 {[%clk 0:01:53]}  Rb8 {[%clk 0:01:12]} 29. h3 {[%clk 0:01:47]}  Rf8 {[%clk 0:01:10]} 30. Re3 {[%clk 0:01:44]}  a5 {[%clk 0:01:07]} 31. Kc1 {[%clk 0:01:43]}  a4 {[%clk 0:01:07]} 32. a3 {[%clk 0:01:43]}  Kd7 {[%clk 0:00:58]} 33. Re2 {[%clk 0:01:39]}  Rff7 {[%clk 0:00:58]} 34. Kd1 {[%clk 0:01:39]}  Rf8 {[%clk 0:00:58]} 35. Ke1 {[%clk 0:01:38]}  Rff7 {[%clk 0:00:58]} 36. Kf2 {[%clk 0:01:38]}  Rf8 {[%clk 0:00:57]} 37. Kf3 {[%clk 0:01:38]}  Rff7 {[%clk 0:00:57]} 38. g4 {[%clk 0:01:38]}  fxg4+ {[%clk 0:00:50]} 39. hxg4 {[%clk 0:01:37]}  Rf6 {[%clk 0:00:50]} 40. Rxf6 {[%clk 0:01:34]}  gxf6 {[%clk 0:00:51]} 41. Rh2 {[%clk 0:01:30]}  Rh7 {[%clk 0:00:49]} 42. Ke3 {[%clk 0:01:30]}  Kd6 {[%clk 0:00:40]} 43. g5 {[%clk 0:01:29]}  fxg5 {[%clk 0:00:41]} 44. fxg5 {[%clk 0:01:29]}  h5 {[%clk 0:00:41]} 45. Kf4 {[%clk 0:01:23]}  Ke7 {[%clk 0:00:37]} 46. g6 {[%clk 0:01:22]}  Rh8 {[%clk 0:00:31]} 47. Kg5 {[%clk 0:01:23]}  Rb8 {[%clk 0:00:25]} 48. Rxh5 {[%clk 0:01:09]}  Rxb2 {[%clk 0:00:24]} 49. Rh7+ {[%clk 0:01:09]}  Kf8 {[%clk 0:00:25]} 50. Kf6 {[%clk 0:01:09]}  Rf2+ {[%clk 0:00:24]} 51. Kxe6 {[%clk 0:01:09]}  Rf3 {[%clk 0:00:16]} 52. Rf7+ {[%clk 0:01:08]} 1-0

[Event "November 21 Early 2023"]
[Site "https://www.chess.com"]
[Date "2023.11.21"]
[Round "1"]
[White "Quirke, Jeffrey"]
[Black "Kabanov, Nikolai"]
[Result "1-0"]
[Board "216"]
[TimeControl "180+1"]
[WhiteFideId "2013029"]
[BlackFideId "4127820"]
[WhiteElo "2210"]
[BlackElo "2318"]
[WhiteTeam "USA"]
[BlackTeam "RUS"]
[WhiteClock "0:00:16"]
[BlackClock "0:00:10"]

1. e4 {[%clk 0:02:55]}  c5 {[%clk 0:01:32]} 2. c3 {[%clk 0:02:51]}  e6 {[%clk 0:01:31]} 3. d4 {[%clk 0:02:50]}  cxd4 {[%clk 0:01:31]} 4. cxd4 {[%clk 0:02:50]}  d5 {[%clk 0:01:31]} 5. e5 {[%clk 0:02:48]}  Nc6 {[%clk 0:01:30]} 6. Nf3 {[%clk 0:02:47]}  Bd7 {[%clk 0:01:29]} 7. Bd3 {[%clk 0:02:43]}  Qb6 {[%clk 0:01:28]} 8. O-O {[%clk 0:02:34]}  Nxd4 {[%clk 0:01:24]} 9. Nbd2 {[%clk 0:02:30]}  Ne7 {[%clk 0:01:16]} 10. Re1 {[%clk 0:02:25]}  Nxf3+ {[%clk 0:01:13]} 11. Nxf3 {[%clk 0:02:24]}  Ng6 {[%clk 0:01:10]} 12. h4 {[%clk 0:02:20]}  Bc5 {[%clk 0:01:06]} 13. Qe2 {[%clk 0:02:16]}  h6 {[%clk 0:01:01]} 14. h5 {[%clk 0:02:14]}  Ne7 {[%clk 0:01:01]} 15. a3 {[%clk 0:02:11]}  a5 {[%clk 0:01:00]} 16. Bf4 {[%clk 0:02:06]}  a4 {[%clk 0:00:59]} 17. Rac1 {[%clk 0:02:03]}  O-O {[%clk 0:00:54]} 18. Bb1 {[%clk 0:01:59]}  Rfc8 {[%clk 0:00:27]} 19. Qd3 {[%clk 0:01:43]}  Nf5 {[%clk 0:00:26]} 20. Qd2 {[%clk 0:01:21]}  Bb5 {[%clk 0:00:21]} 21. g4 {[%clk 0:01:20]}  Nd4 {[%clk 0:00:18]} 22. Nxd4 {[%clk 0:01:17]}  Bxd4 {[%clk 0:00:19]} 23. Bxh6 {[%clk 0:01:07]}  gxh6 {[%clk 0:00:17]} 24. Qxh6 {[%clk 0:01:04]}  Bxf2+ {[%clk 0:00:15]} 25. Kg2 {[%clk 0:01:03]}  Be3 {[%clk 0:00:14]} 26. Bh7+ {[%clk 0:00:37]}  Kh8 {[%clk 0:00:13]} 27. Rxe3 {[%clk 0:00:38]}  Qxe3 {[%clk 0:00:12]} 28. Qxe3 {[%clk 0:00:36]}  Kxh7 {[%clk 0:00:13]} 29. Rxc8 {[%clk 0:00:19]}  Rxc8 {[%clk 0:00:13]} 30. Qg5 {[%clk 0:00:19]}  Rc2+ {[%clk 0:00:12]} 31. Kg3 {[%clk 0:00:19]}  Bd3 {[%clk 0:00:12]} 32. Qf6 {[%clk 0:00:16]}  Kg8 {[%clk 0:00:12]} 33. h6 {[%clk 0:00:16]}  Kf8 {[%clk 0:00:10]} 34. Qd8# {[%clk 0:00:16]} 1-0

[Event "November 21 Early 2023"]
[Site "https://www.chess.com"]
[Date "2023.11.21"]
[Round "1"]
[White "Badelka, Olga"]
[Black "Florianovitz, Derlei Alex"]
[Result "1-0"]
[Board "217"]
[TimeControl "180+1"]
[WhiteFideId "13509926"]
[BlackFideId "2114178"]
[WhiteElo "2262"]
[BlackElo "1953"]
[WhiteTeam "FID"]
[BlackTeam "BRA"]
[WhiteClock "0:00:05"]
[BlackClock "0:00:00"]

1. c4 {[%clk 0:02:56]}  c5 {[%clk 0:02:58]} 2. Nf3 {[%clk 0:02:55]}  Nc6 {[%clk 0:02:57]} 3. Nc3 {[%clk 0:02:54]}  g6 {[%clk 0:02:57]} 4. e3 {[%clk 0:02:53]}  Bg7 {[%clk 0:02:56]} 5. d4 {[%clk 0:02:53]}  cxd4 {[%clk 0:02:51]} 6. exd4 {[%clk 0:02:53]}  d6 {[%clk 0:02:49]} 7. Be2 {[%clk 0:02:44]}  Nf6 {[%clk 0:02:48]} 8. d5 {[%clk 0:02:43]}  Nb8 {[%clk 0:02:46]} 9. O-O {[%clk 0:02:42]}  O-O {[%clk 0:02:46]} 10. Be3 {[%clk 0:02:41]}  Bg4 {[%clk 0:02:43]} 11. Nd4 {[%clk 0:02:35]}  Bxe2 {[%clk 0:02:40]} 12. Qxe2 {[%clk 0:02:36]}  Nbd7 {[%clk 0:02:37]} 13. Rac1 {[%clk 0:02:33]}  Rc8 {[%clk 0:02:36]} 14. b3 {[%clk 0:02:31]}  a6 {[%clk 0:02:36]} 15. Rfe1 {[%clk 0:02:27]}  Re8 {[%clk 0:02:19]} 16. h3 {[%clk 0:02:25]}  Qa5 {[%clk 0:02:05]} 17. Qd2 {[%clk 0:02:09]}  h5 {[%clk 0:01:54]} 18. Bh6 {[%clk 0:01:47]}  Kh7 {[%clk 0:01:51]} 19. Bxg7 {[%clk 0:01:47]}  Kxg7 {[%clk 0:01:52]} 20. f4 {[%clk 0:01:35]}  b5 {[%clk 0:01:32]} 21. Nc6 {[%clk 0:01:24]}  Qb6+ {[%clk 0:01:28]} 22. Kh1 {[%clk 0:01:24]}  e6 {[%clk 0:00:38]} 23. cxb5 {[%clk 0:00:54]}  axb5 {[%clk 0:00:37]} 24. dxe6 {[%clk 0:00:46]}  Rxe6 {[%clk 0:00:38]} 25. Rxe6 {[%clk 0:00:44]}  fxe6 {[%clk 0:00:38]} 26. Nd4 {[%clk 0:00:39]}  Re8 {[%clk 0:00:38]} 27. Re1 {[%clk 0:00:37]}  e5 {[%clk 0:00:38]} 28. Ndxb5 {[%clk 0:00:31]}  d5 {[%clk 0:00:18]} 29. fxe5 {[%clk 0:00:28]}  Nxe5 {[%clk 0:00:17]} 30. Qd4 {[%clk 0:00:24]}  Nf3 {[%clk 0:00:06]} 31. gxf3 {[%clk 0:00:12]}  Rxe1+ {[%clk 0:00:06]} 32. Kg2 {[%clk 0:00:13]}  Qxd4 {[%clk 0:00:06]} 33. Nxd4 {[%clk 0:00:14]}  Rc1 {[%clk 0:00:04]} 34. Ncb5 {[%clk 0:00:12]}  Rd1 {[%clk 0:00:03]} 35. a4 {[%clk 0:00:12]}  Rb1 {[%clk 0:00:02]} 36. a5 {[%clk 0:00:09]}  Nd7 {[%clk 0:00:02]} 37. a6 {[%clk 0:00:09]}  Nb6 {[%clk 0:00:02]} 38. a7 {[%clk 0:00:09]}  Ra1 {[%clk 0:00:01]} 39. Ne6+ {[%clk 0:00:04]}  Kf6 {[%clk 0:00:01]} 40. Nec7 {[%clk 0:00:05]}  Ke5 {[%clk 0:00:00]} 41. h4 {[%clk 0:00:05]} 1-0

[Event "November 21 Early 2023"]
[Site "https://www.chess.com"]
[Date "2023.11.21"]
[Round "1"]
[White "Chemin, Justo Reinaldo"]
[Black "Khater, Sherif"]
[Result "0-1"]
[Board "218"]
[TimeControl "180+1"]
[WhiteFideId "2101580"]
[BlackFideId "2034280"]
[WhiteElo "1940"]
[BlackElo "2552"]
[WhiteTeam "BRA"]
[BlackTeam "USA"]
[WhiteClock "0:00:02"]
[BlackClock "0:02:16"]

1. d4 {[%clk 0:02:58]}  d5 {[%clk 0:02:59]} 2. c4 {[%clk 0:02:57]}  e6 {[%clk 0:02:58]} 3. Nc3 {[%clk 0:02:57]}  Nf6 {[%clk 0:02:58]} 4. Bg5 {[%clk 0:02:56]}  dxc4 {[%clk 0:02:58]} 5. e4 {[%clk 0:02:54]}  Be7 {[%clk 0:02:52]} 6. Nf3 {[%clk 0:02:41]}  a6 {[%clk 0:02:51]} 7. Bxc4 {[%clk 0:02:39]}  b5 {[%clk 0:02:51]} 8. Bd3 {[%clk 0:02:39]}  Bb7 {[%clk 0:02:51]} 9. Qe2 {[%clk 0:02:37]}  Nbd7 {[%clk 0:02:50]} 10. O-O {[%clk 0:02:27]}  h6 {[%clk 0:02:49]} 11. Bh4 {[%clk 0:02:25]}  O-O {[%clk 0:02:46]} 12. Rac1 {[%clk 0:02:21]}  c5 {[%clk 0:02:43]} 13. Bg3 {[%clk 0:01:58]}  cxd4 {[%clk 0:02:41]} 14. Nxd4 {[%clk 0:01:56]}  Nc5 {[%clk 0:02:38]} 15. Bb1 {[%clk 0:01:45]}  Qxd4 {[%clk 0:02:35]} 16. Rcd1 {[%clk 0:01:38]}  Qc4 {[%clk 0:02:33]} 17. Qxc4 {[%clk 0:01:33]}  bxc4 {[%clk 0:02:33]} 18. Rfe1 {[%clk 0:01:23]}  Rfd8 {[%clk 0:02:31]} 19. Rc1 {[%clk 0:01:23]}  Nd3 {[%clk 0:02:31]} 20. Bxd3 {[%clk 0:01:21]}  cxd3 {[%clk 0:02:29]} 21. Rcd1 {[%clk 0:01:20]}  Bb4 {[%clk 0:02:27]} 22. f3 {[%clk 0:00:59]}  Bxc3 {[%clk 0:02:26]} 23. bxc3 {[%clk 0:00:59]}  Bc6 {[%clk 0:02:26]} 24. Rd2 {[%clk 0:00:54]}  Bb5 {[%clk 0:02:25]} 25. Red1 {[%clk 0:00:53]}  Bc4 {[%clk 0:02:26]} 26. Be5 {[%clk 0:00:43]}  Ra7 {[%clk 0:02:23]} 27. Kf2 {[%clk 0:00:41]}  Rb7 {[%clk 0:02:23]} 28. Ke3 {[%clk 0:00:40]}  Nd7 {[%clk 0:02:23]} 29. Bg3 {[%clk 0:00:32]}  e5 {[%clk 0:02:22]} 30. Rxd3 {[%clk 0:00:20]}  Bxd3 {[%clk 0:02:22]} 31. Rxd3 {[%clk 0:00:20]}  f6 {[%clk 0:02:22]} 32. f4 {[%clk 0:00:16]}  Rbb8 {[%clk 0:02:20]} 33. Rd6 {[%clk 0:00:13]}  exf4+ {[%clk 0:02:18]} 34. Bxf4 {[%clk 0:00:13]}  Ne5 {[%clk 0:02:17]} 35. Bxe5 {[%clk 0:00:07]}  fxe5 {[%clk 0:02:17]} 36. Rxa6 {[%clk 0:00:02]}  Ra8 {[%clk 0:02:16]} 0-1

[Event "November 21 Early 2023"]
[Site "https://www.chess.com"]
[Date "2023.11.21"]
[Round "1"]
[White "Osmonbekov, Talaibek"]
[Black "subham777"]
[Result "1-0"]
[Board "222"]
[TimeControl "180+1"]
[WhiteFideId "2017253"]
[WhiteElo "2135"]
[BlackElo "2550"]
[WhiteTeam "USA"]
[WhiteClock "0:00:57"]
[BlackClock "0:00:32"]

1. d4 {[%clk 0:02:59]}  d5 {[%clk 0:02:57]} 2. Bf4 {[%clk 0:02:59]}  Nf6 {[%clk 0:02:57]} 3. Nc3 {[%clk 0:03:00]}  a6 {[%clk 0:02:56]} 4. e3 {[%clk 0:03:00]}  c5 {[%clk 0:02:55]} 5. Nf3 {[%clk 0:03:01]}  e6 {[%clk 0:02:52]} 6. Ne5 {[%clk 0:03:01]}  Bd6 {[%clk 0:02:50]} 7. g4 {[%clk 0:02:56]}  Qb6 {[%clk 0:02:43]} 8. a3 {[%clk 0:02:44]}  cxd4 {[%clk 0:02:22]} 9. exd4 {[%clk 0:02:43]}  Nc6 {[%clk 0:02:19]} 10. Nc4 {[%clk 0:02:17]}  dxc4 {[%clk 0:02:06]} 11. Bxd6 {[%clk 0:02:17]}  Qxd4 {[%clk 0:01:49]} 12. Qxd4 {[%clk 0:02:15]}  Nxd4 {[%clk 0:01:48]} 13. O-O-O {[%clk 0:02:15]}  Nb5 {[%clk 0:01:41]} 14. Bxc4 {[%clk 0:01:43]}  Nxd6 {[%clk 0:01:36]} 15. Rxd6 {[%clk 0:01:44]}  Nxg4 {[%clk 0:01:33]} 16. Rg1 {[%clk 0:01:42]}  Nxf2 {[%clk 0:01:23]} 17. Rxg7 {[%clk 0:01:41]}  Kf8 {[%clk 0:01:19]} 18. Rg2 {[%clk 0:01:36]}  Nh3 {[%clk 0:01:16]} 19. Rd8+ {[%clk 0:01:35]}  Ke7 {[%clk 0:01:10]} 20. Rxh8 {[%clk 0:01:36]}  b5 {[%clk 0:01:00]} 21. Bd3 {[%clk 0:01:32]}  Bb7 {[%clk 0:00:57]} 22. Rxa8 {[%clk 0:01:26]}  Bxa8 {[%clk 0:00:56]} 23. Rg7 {[%clk 0:01:27]}  h5 {[%clk 0:00:52]} 24. Be4 {[%clk 0:01:20]}  Kf6 {[%clk 0:00:44]} 25. Rg8 {[%clk 0:01:14]}  Bxe4 {[%clk 0:00:38]} 26. Nxe4+ {[%clk 0:01:15]}  Ke5 {[%clk 0:00:38]} 27. Ng5 {[%clk 0:01:11]}  Nf4 {[%clk 0:00:37]} 28. Nxf7+ {[%clk 0:01:11]}  Kf6 {[%clk 0:00:38]} 29. Nd6 {[%clk 0:01:08]}  e5 {[%clk 0:00:38]} 30. Kd2 {[%clk 0:01:05]}  Ke6 {[%clk 0:00:38]} 31. Ne4 {[%clk 0:01:04]}  Kf5 {[%clk 0:00:38]} 32. Ke3 {[%clk 0:01:02]}  Nd5+ {[%clk 0:00:37]} 33. Kf3 {[%clk 0:01:03]}  Ne7 {[%clk 0:00:34]} 34. Rg5+ {[%clk 0:01:02]}  Ke6 {[%clk 0:00:34]} 35. Rxh5 {[%clk 0:01:02]}  Nc6 {[%clk 0:00:35]} 36. c3 {[%clk 0:01:01]}  Na5 {[%clk 0:00:34]} 37. Rh6+ {[%clk 0:01:01]}  Kd5 {[%clk 0:00:34]} 38. Rxa6 {[%clk 0:01:01]}  Nc4 {[%clk 0:00:32]} 39. b3 {[%clk 0:00:57]} 1-0